[Event "FIDE U16 Olympiad_boards_1-80"]
[Site "Eindhoven, Netherlands"]
[Date "2023.08.14"]
[Round "2.38"]
[White "Olenik Campa, Rudi"]
[Black "Balint, Peter"]
[Result "1/2-1/2"]
[TimeControl "2700+10"]
[WhiteElo "2110"]
[BlackElo "2162"]

1. e4 {[%clk 00:45:19]} c5 {[%clk 00:45:15]} {[%emt 00:00:06]} 2. Nf3 {[%clk
00:45:26]} {[%emt 00:00:03]} e6 {[%clk 00:45:22]} {[%emt 00:00:03]} 3. g3
{[%clk 00:45:30]} {[%emt 00:00:07]} Nc6 {[%clk 00:43:51]} {[%emt 00:01:40]} 4.
Bg2 {[%clk 00:45:39]} {[%emt 00:00:01]} d6 {[%clk 00:42:36]} {[%emt 00:01:25]}
5. d4 {[%clk 00:44:41]} {[%emt 00:01:07]} cxd4 {[%clk 00:41:43]} {[%emt
00:01:03]} 6. Nxd4 {[%clk 00:44:50]} {[%emt 00:00:02]} Bd7 {[%clk 00:38:24]}
{[%emt 00:03:29]} 7. O-O {[%clk 00:44:52]} {[%emt 00:00:07]} Nf6 {[%clk
00:35:07]} {[%emt 00:03:28]} 8. Nc3 {[%clk 00:43:43]} {[%emt 00:01:19]} Be7
{[%clk 00:34:51]} {[%emt 00:00:26]} 9. a4 {[%clk 00:42:40]} {[%emt 00:01:13]}
O-O {[%clk 00:34:30]} {[%emt 00:00:31]} 10. b3 {[%clk 00:41:06]} {[%emt
00:01:43]} a6 {[%clk 00:32:49]} {[%emt 00:01:52]} 11. Nxc6 {[%clk 00:40:59]}
{[%emt 00:00:18]} Bxc6 {[%clk 00:32:55]} {[%emt 00:00:04]} 12. a5 {[%clk
00:39:43]} {[%emt 00:01:26]} Qc7 {[%clk 00:29:48]} {[%emt 00:03:16]} 13. Be3
{[%clk 00:39:25]} {[%emt 00:00:28]} Nd7 {[%clk 00:27:59]} {[%emt 00:02:00]} 14.
Bd4 {[%clk 00:38:43]} {[%emt 00:00:52]} Bf6 {[%clk 00:25:18]} {[%emt 00:02:52]}
15. Bxf6 {[%clk 00:36:02]} {[%emt 00:02:50]} Nxf6 {[%clk 00:25:24]} {[%emt
00:00:03]} 16. Qd4 {[%clk 00:35:52]} {[%emt 00:00:19]} Rfd8 {[%clk 00:24:29]}
{[%emt 00:01:06]} 17. Na4 {[%clk 00:32:31]} {[%emt 00:03:31]} Bxa4 {[%clk
00:17:54]} {[%emt 00:06:44]} 18. Qxa4 {[%clk 00:32:40]} {[%emt 00:00:02]} Nd7
{[%clk 00:16:01]} {[%emt 00:02:03]} 19. c4 {[%clk 00:32:07]} {[%emt 00:00:43]}
Nc5 {[%clk 00:15:49]} {[%emt 00:00:23]} 20. Qa2 {[%clk 00:32:16]} e5 {[%clk
00:15:36]} {[%emt 00:00:24]} 21. b4 {[%clk 00:31:29]} {[%emt 00:00:57]} Ne6
{[%clk 00:15:43]} {[%emt 00:00:03]} 22. f4 {[%clk 00:30:53]} {[%emt 00:00:45]}
Rac8 {[%clk 00:12:03]} {[%emt 00:03:50]} 23. Rac1 {[%clk 00:31:02]} {[%emt
00:00:01]} b5 {[%clk 00:10:46]} {[%emt 00:01:27]} 24. c5 {[%clk 00:24:42]}
{[%emt 00:06:30]} dxc5 {[%clk 00:09:30]} {[%emt 00:01:25]} 25. f5 {[%clk
00:24:43]} {[%emt 00:00:10]} Nd4 {[%clk 00:09:37]} {[%emt 00:00:03]} 26. Rxc5
{[%clk 00:24:50]} {[%emt 00:00:03]} Qe7 {[%clk 00:09:23]} {[%emt 00:00:24]} 27.
Rfc1 {[%clk 00:22:27]} {[%emt 00:02:32]} Rxc5 {[%clk 00:09:29]} {[%emt
00:00:04]} 28. Rxc5 {[%clk 00:22:35]} {[%emt 00:00:03]} g6 {[%clk 00:07:51]}
{[%emt 00:01:48]} 29. h4 {[%clk 00:19:24]} {[%emt 00:03:21]} Kg7 {[%clk
00:06:50]} {[%emt 00:01:10]} 30. Qf2 {[%clk 00:17:36]} {[%emt 00:01:58]} f6
{[%clk 00:05:24]} {[%emt 00:01:37]} 31. g4 {[%clk 00:16:21]} {[%emt 00:01:25]}
Rd7 {[%clk 00:04:31]} {[%emt 00:01:03]} 32. g5 {[%clk 00:09:22]} {[%emt
00:07:09]} fxg5 {[%clk 00:03:58]} {[%emt 00:00:43]} 33. Rc8 {[%clk 00:09:30]}
gxf5 {[%clk 00:03:05]} {[%emt 00:01:04]} 34. exf5 {[%clk 00:09:29]} {[%emt
00:00:10]} Qf6 {[%clk 00:03:11]} {[%emt 00:00:04]} 35. hxg5 {[%clk 00:07:12]}
{[%emt 00:02:27]} Qxf5 {[%clk 00:03:20]} {[%emt 00:00:02]} 36. Qxf5 {[%clk
00:06:47]} {[%emt 00:00:34]} Nxf5 {[%clk 00:03:28]} {[%emt 00:00:02]} 37. Rc6
{[%clk 00:06:31]} {[%emt 00:00:26]} Rd1+ {[%clk 00:02:52]} {[%emt 00:00:47]} 38.
Kf2 {[%clk 00:05:52]} {[%emt 00:00:48]} Rd2+ {[%clk 00:02:59]} {[%emt
00:00:03]} 39. Kg1 {[%clk 00:06:01]} {[%emt 00:00:02]} Rd6 {[%clk 00:01:49]}
{[%emt 00:01:20]} 40. Rb6 {[%clk 00:05:50]} {[%emt 00:00:21]} Rd1+ {[%clk
00:01:12]} {[%emt 00:00:47]} 41. Kf2 {[%clk 00:05:58]} Rd2+ {[%clk 00:01:19]}
{[%emt 00:00:03]} 42. Kg1 {[%clk 00:06:06]} {[%emt 00:00:02]} Rd1+ {[%clk
00:00:42]} {[%emt 00:00:47]} 43. Kf2 {[%clk 00:06:12]} {[%emt 00:00:04]} Rd2+
{[%clk 00:00:27]} {[%emt 00:00:25]} 44. Kg1 {[%clk 00:06:20]} {[%emt 00:00:02]}
Rd1+ {[%clk 00:00:28]} {[%emt 00:00:07]} 1/2-1/2

[Event "FIDE U16 Olympiad_boards_1-80"]
[Site "Eindhoven, Netherlands"]
[Date "2023.08.14"]
[Round "2.39"]
[White "Ernst, Robert"]
[Black "Skrbec, Leon"]
[Result "0-1"]
[TimeControl "2700+10"]
[WhiteElo "2088"]
[BlackElo "2079"]

1. d4 {[%clk 00:45:19]} Nf6 {[%clk 00:45:17]} {[%emt 00:00:03]} 2. c4 {[%clk
00:45:28]} {[%emt 00:00:02]} e6 {[%clk 00:45:22]} {[%emt 00:00:05]} 3. Nc3
{[%clk 00:45:37]} Bb4 {[%clk 00:45:21]} {[%emt 00:00:11]} 4. e3 {[%clk
00:45:45]} {[%emt 00:00:02]} b6 {[%clk 00:44:53]} {[%emt 00:00:37]} 5. Nge2
{[%clk 00:45:51]} {[%emt 00:00:04]} Bb7 {[%clk 00:44:40]} {[%emt 00:00:23]} 6.
a3 {[%clk 00:45:56]} {[%emt 00:00:05]} Bxc3+ {[%clk 00:44:02]} {[%emt
00:00:48]} 7. Nxc3 {[%clk 00:46:04]} {[%emt 00:00:02]} O-O {[%clk 00:43:46]}
{[%emt 00:00:26]} 8. Bd3 {[%clk 00:45:42]} {[%emt 00:00:31]} d6 {[%clk
00:43:31]} {[%emt 00:00:25]} 9. O-O {[%clk 00:45:33]} {[%emt 00:00:19]} e5
{[%clk 00:43:25]} {[%emt 00:00:16]} 10. d5 {[%clk 00:44:46]} {[%emt 00:00:57]}
Nbd7 {[%clk 00:42:37]} {[%emt 00:00:58]} 11. e4 {[%clk 00:42:44]} {[%emt
00:02:12]} a5 {[%clk 00:35:05]} {[%emt 00:07:41]} 12. Bg5 {[%clk 00:41:55]}
{[%emt 00:00:59]} h6 {[%clk 00:35:12]} {[%emt 00:00:04]} 13. Bh4 {[%clk
00:41:58]} {[%emt 00:00:08]} g5 {[%clk 00:34:57]} {[%emt 00:00:24]} 14. Bg3
{[%clk 00:42:07]} {[%emt 00:00:01]} Kg7 {[%clk 00:32:26]} {[%emt 00:02:41]} 15.
b4 {[%clk 00:38:41]} {[%emt 00:03:37]} Re8 {[%clk 00:30:13]} {[%emt 00:02:22]}
16. f3 {[%clk 00:34:08]} {[%emt 00:04:43]} Nf8 {[%clk 00:27:37]} {[%emt
00:02:46]} 17. c5 {[%clk 00:32:51]} {[%emt 00:01:27]} axb4 {[%clk 00:27:39]}
{[%emt 00:00:09]} 18. axb4 {[%clk 00:33:00]} Rxa1 {[%clk 00:27:32]} {[%emt
00:00:17]} 19. Qxa1 {[%clk 00:33:09]} {[%emt 00:00:02]} bxc5 {[%clk 00:27:27]}
{[%emt 00:00:15]} 20. bxc5 {[%clk 00:33:17]} {[%emt 00:00:01]} c6 {[%clk
00:25:37]} {[%emt 00:02:00]} 21. Rb1 {[%clk 00:25:42]} {[%emt 00:07:45]} Ba8
{[%clk 00:25:04]} {[%emt 00:00:42]} 22. dxc6 {[%clk 00:21:36]} {[%emt
00:04:16]} Bxc6 {[%clk 00:25:04]} {[%emt 00:00:10]} 23. Bc4 {[%clk 00:17:09]}
{[%emt 00:04:37]} dxc5 {[%clk 00:23:40]} {[%emt 00:01:34]} 24. Nd5 {[%clk
00:17:11]} {[%emt 00:00:08]} Bxd5 {[%clk 00:20:54]} {[%emt 00:02:55]} 25. exd5
{[%clk 00:17:20]} {[%emt 00:00:02]} N8d7 {[%emt 00:05:47]} 26. Qa7 {[%clk
00:15:39]} e4 {[%clk 00:15:47]} {[%emt 00:01:31]} 27. fxe4 {[%clk 00:12:55]}
{[%emt 00:02:54]} Rxe4 {[%clk 00:15:35]} {[%emt 00:00:21]} 28. Bb5 {[%clk
00:12:29]} {[%emt 00:00:37]} Qe7 {[%clk 00:08:10]} {[%emt 00:07:36]} 29. d6
{[%clk 00:11:56]} {[%emt 00:00:43]} Qe6 {[%clk 00:08:13]} {[%emt 00:00:07]} 30.
Rf1 {[%clk 00:09:20]} {[%emt 00:02:46]} c4 {[%clk 00:07:14]} {[%emt 00:01:09]}
31. Qc7 {[%clk 00:08:59]} {[%emt 00:00:31]} h5 {[%clk 00:06:16]} {[%emt
00:01:08]} 32. h3 {[%clk 00:05:35]} {[%emt 00:03:33]} h4 {[%clk 00:06:13]}
{[%emt 00:00:14]} 33. Bh2 {[%clk 00:05:44]} {[%emt 00:00:01]} g4 {[%clk
00:04:28]} {[%emt 00:01:55]} 34. hxg4 {[%clk 00:05:29]} {[%emt 00:00:25]} Qxg4
{[%clk 00:04:34]} {[%emt 00:00:04]} 35. Bc6 {[%clk 00:05:14]} {[%emt 00:00:25]}
h3 {[%clk 00:03:52]} {[%emt 00:00:52]} 36. g3 {[%clk 00:02:41]} {[%emt
00:02:43]} Qe2 {[%clk 00:02:37]} {[%emt 00:01:25]} 37. Bxe4 {[%clk 00:01:48]}
{[%emt 00:01:03]} Qxe4 {[%clk 00:02:44]} {[%emt 00:00:03]} 38. Rf2 {[%clk
00:01:51]} {[%emt 00:00:07]} Qe1+ {[%clk 00:02:52]} {[%emt 00:00:02]} 39. Rf1
{[%clk 00:02:00]} {[%emt 00:00:01]} Qe3+ {[%clk 00:02:58]} {[%emt 00:00:02]}
0-1

[Event "FIDE U16 Olympiad_boards_1-80"]
[Site "Eindhoven, Netherlands"]
[Date "2023.08.14"]
[Round "2.40"]
[White "Kosak, Karolina"]
[Black "Deak-Sala, Emilia"]
[Result "1/2-1/2"]
[TimeControl "2700+10"]
[WhiteElo "1364"]
[BlackElo "1910"]

1. e4 {[%clk 00:45:19]} {[%emt 00:00:01]} c5 {[%clk 00:45:18]} {[%emt
00:00:02]} 2. c3 {[%clk 00:45:28]} Nf6 {[%clk 00:45:27]} {[%emt 00:00:02]} 3.
e5 {[%clk 00:45:37]} {[%emt 00:00:02]} Nd5 {[%clk 00:45:36]} 4. Nf3 {[%clk
00:45:43]} {[%emt 00:00:03]} Nc6 {[%clk 00:45:44]} {[%emt 00:00:03]} 5. Bc4
{[%clk 00:45:51]} {[%emt 00:00:02]} Nb6 {[%clk 00:45:52]} {[%emt 00:00:03]} 6.
Bb3 {[%clk 00:45:59]} {[%emt 00:00:01]} c4 {[%clk 00:42:40]} {[%emt 00:03:23]}
7. Bc2 {[%clk 00:46:08]} d5 {[%clk 00:42:43]} {[%emt 00:00:08]} 8. exd6 {[%clk
00:46:10]} {[%emt 00:00:08]} Qxd6 {[%clk 00:42:19]} {[%emt 00:00:34]} 9. O-O
{[%clk 00:46:10]} {[%emt 00:00:08]} Bg4 {[%clk 00:39:56]} {[%emt 00:02:35]} 10.
h3 {[%clk 00:43:46]} {[%emt 00:02:34]} Bh5 {[%clk 00:39:26]} {[%emt 00:00:40]}
11. Qe2 {[%clk 00:42:53]} {[%emt 00:01:02]} e6 {[%clk 00:33:52]} {[%emt
00:05:46]} 12. b3 {[%clk 00:42:06]} {[%emt 00:00:54]} cxb3 {[%clk 00:32:48]}
{[%emt 00:01:17]} 13. axb3 {[%clk 00:42:09]} {[%emt 00:00:05]} Be7 {[%clk
00:30:40]} {[%emt 00:02:20]} 14. d4 {[%clk 00:42:01]} {[%emt 00:00:16]} Bg6
{[%clk 00:28:50]} {[%emt 00:02:02]} 15. Re1 {[%clk 00:40:34]} {[%emt 00:01:31]}
O-O {[%clk 00:28:08]} {[%emt 00:00:57]} 16. Ba3 {[%clk 00:37:52]} {[%emt
00:02:52]} Qc7 {[%clk 00:28:16]} {[%emt 00:00:03]} 17. Bxe7 {[%clk 00:37:45]}
{[%emt 00:00:16]} Nxe7 {[%clk 00:27:03]} {[%emt 00:01:22]} 18. Ne5 {[%clk
00:36:26]} {[%emt 00:01:29]} Bxc2 {[%clk 00:26:35]} {[%emt 00:00:39]} 19. Qxc2
{[%clk 00:36:33]} {[%emt 00:00:02]} Nf5 {[%clk 00:24:59]} {[%emt 00:01:47]} 20.
Qe4 {[%clk 00:33:34]} {[%emt 00:03:06]} Rfd8 {[%clk 00:19:54]} {[%emt
00:05:18]} 21. g4 {[%clk 00:31:43]} {[%emt 00:02:00]} Ne7 {[%clk 00:17:08]}
{[%emt 00:02:57]} 22. c4 {[%clk 00:30:24]} {[%emt 00:01:28]} Ng6 {[%clk
00:17:16]} {[%emt 00:00:03]} 23. Nc3 {[%clk 00:29:12]} {[%emt 00:01:19]} a6
{[%clk 00:15:26]} {[%emt 00:02:03]} 24. Rad1 {[%clk 00:29:03]} {[%emt
00:00:17]} Rac8 {[%clk 00:11:37]} {[%emt 00:04:00]} 25. Nxg6 {[%clk 00:15:10]}
{[%emt 00:14:03]} hxg6 {[%clk 00:11:45]} {[%emt 00:00:02]} 26. d5 {[%clk
00:14:37]} {[%emt 00:00:43]} exd5 {[%clk 00:11:51]} {[%emt 00:00:04]} 27. Nxd5
{[%clk 00:14:44]} {[%emt 00:00:04]} Nxd5 {[%clk 00:11:59]} {[%emt 00:00:02]} 28.
Rxd5 {[%clk 00:14:37]} {[%emt 00:00:17]} Qb6 {[%clk 00:05:32]} {[%emt
00:06:37]} 29. Re3 {[%clk 00:12:35]} {[%emt 00:02:04]} Rf8 {[%clk 00:05:38]}
{[%emt 00:00:12]} 30. h4 {[%clk 00:10:58]} {[%emt 00:01:48]} Rc6 {[%clk
00:02:39]} {[%emt 00:03:09]} 31. Qe7 {[%clk 00:08:30]} {[%emt 00:02:35]} Re6
{[%clk 00:01:52]} {[%emt 00:00:59]} 32. Rxe6 {[%clk 00:08:02]} {[%emt
00:00:38]} fxe6 {[%clk 00:02:00]} {[%emt 00:00:01]} 33. c5 {[%clk 00:02:38]}
{[%emt 00:05:34]} Qb4 {[%clk 00:01:10]} {[%emt 00:01:00]} 34. Qxe6+ {[%clk
00:02:29]} {[%emt 00:00:20]} Kh7 {[%clk 00:00:35]} {[%emt 00:00:45]} 35. h5
{[%clk 00:02:07]} {[%emt 00:00:32]} Rf6 {[%clk 00:00:14]} {[%emt 00:00:32]} 36.
hxg6+ {[%clk 00:02:16]} Kxg6 {[%clk 00:00:21]} {[%emt 00:00:03]} 37. Qe8+
{[%clk 00:01:45]} {[%emt 00:00:41]} Kh7 {[%clk 00:00:30]} {[%emt 00:00:01]} 38.
Rh5+ {[%clk 00:01:11]} {[%emt 00:00:43]} Rh6 {[%clk 00:00:39]} {[%emt
00:00:01]} 39. Rxh6+ {[%clk 00:00:30]} {[%emt 00:00:52]} gxh6 {[%clk 00:00:48]}
{[%emt 00:00:01]} 40. Qf7+ {[%clk 00:00:34]} {[%emt 00:00:03]} Kh8 {[%clk
00:00:57]} {[%emt 00:00:04]} 41. Qf6+ {[%clk 00:00:22]} {[%emt 00:00:20]} Kh7
{[%clk 00:01:05]} {[%emt 00:00:03]} 42. Qf5+ {[%clk 00:00:18]} {[%emt
00:00:12]} Kg7 {[%clk 00:01:12]} {[%emt 00:00:04]} 43. g5 {[%clk 00:00:18]}
{[%emt 00:00:11]} hxg5 {[%clk 00:00:45]} {[%emt 00:00:37]} 44. Qxg5+ {[%clk
00:00:28]} Kf7 {[%clk 00:00:47]} {[%emt 00:00:08]} 45. Qd5+ {[%clk 00:00:34]}
{[%emt 00:00:04]} Kg7 {[%clk 00:00:54]} {[%emt 00:00:03]} 46. Qe5+ {[%clk
00:00:31]} {[%emt 00:00:12]} Kf7 {[%clk 00:00:59]} {[%emt 00:00:04]} 47. Qc7+
{[%clk 00:00:38]} {[%emt 00:00:03]} Kf8 {[%clk 00:00:56]} {[%emt 00:00:13]} 48.
Qc8+ {[%clk 00:00:30]} {[%emt 00:00:18]} Kf7 {[%clk 00:01:05]} {[%emt
00:00:02]} 49. Qd7+ {[%clk 00:00:37]} {[%emt 00:00:03]} Kf8 {[%clk 00:01:07]}
{[%emt 00:00:08]} 50. Qf5+ {[%clk 00:00:44]} {[%emt 00:00:03]} Ke7 {[%clk
00:00:58]} {[%emt 00:00:19]} 51. Qe5+ {[%clk 00:00:50]} {[%emt 00:00:04]} Kf7
{[%clk 00:01:02]} {[%emt 00:00:06]} 52. Qc7+ {[%clk 00:00:55]} {[%emt
00:00:05]} Kf8 {[%clk 00:01:04]} {[%emt 00:00:08]} 53. Qd6+ {[%clk 00:01:02]}
{[%emt 00:00:02]} Kf7 {[%clk 00:01:13]} {[%emt 00:00:01]} 54. Qd5+ {[%clk
00:01:09]} {[%emt 00:00:04]} Kf8 {[%clk 00:00:56]} {[%emt 00:00:28]} 55. Qf5+
{[%clk 00:01:07]} {[%emt 00:00:11]} Ke7 {[%clk 00:00:57]} {[%emt 00:00:10]} 56.
Qe5+ {[%clk 00:01:15]} {[%emt 00:00:01]} Kf7 {[%clk 00:01:04]} {[%emt
00:00:04]} 57. Qe3 {[%clk 00:00:53]} {[%emt 00:00:28]} Qg4+ {[%clk 00:00:56]}
{[%emt 00:00:21]} 58. Kh2 {[%clk 00:00:43]} {[%emt 00:00:19]} Qh4+ {[%clk
00:01:01]} {[%emt 00:00:06]} 59. Kg2 {[%clk 00:00:47]} {[%emt 00:00:03]} Qg4+
{[%clk 00:00:32]} {[%emt 00:00:42]} 60. Qg3 {[%clk 00:00:54]} {[%emt 00:00:03]}
Qb4 {[%clk 00:00:39]} {[%emt 00:00:03]} 61. Qf3+ {[%clk 00:00:51]} {[%emt
00:00:13]} Ke7 {[%clk 00:00:14]} {[%emt 00:00:35]} 62. Qe3+ {[%clk 00:01:00]}
Kf7 {[%clk 00:00:19]} {[%emt 00:00:04]} 63. Kf3 {[%clk 00:01:08]} {[%emt
00:00:02]} Qb5 {[%clk 00:00:13]} {[%emt 00:00:17]} 64. Qf4+ {[%clk 00:01:03]}
{[%emt 00:00:15]} Kg7 {[%clk 00:00:18]} {[%emt 00:00:04]} 65. Qd6 {[%clk
00:01:09]} {[%emt 00:00:04]} Qxb3+ {[%clk 00:00:24]} {[%emt 00:00:04]} 66. Kg2
{[%clk 00:01:08]} {[%emt 00:00:11]} Qb5 {[%clk 00:00:17]} {[%emt 00:00:17]} 67.
Qe5+ {[%clk 00:01:13]} {[%emt 00:00:04]} Kf7 {[%clk 00:00:24]} {[%emt
00:00:04]} 68. Qc7+ {[%clk 00:01:19]} {[%emt 00:00:04]} Kf6 {[%clk 00:00:17]}
{[%emt 00:00:17]} 69. Qd6+ {[%clk 00:01:26]} {[%emt 00:00:02]} Kf7 {[%clk
00:00:26]} {[%emt 00:00:02]} 70. Qc7+ {[%clk 00:01:32]} {[%emt 00:00:04]} Ke8
{[%clk 00:00:22]} {[%emt 00:00:14]} 71. Qe5+ {[%clk 00:01:35]} {[%emt
00:00:08]} Kd7 {[%clk 00:00:19]} {[%emt 00:00:13]} 72. Qd6+ {[%clk 00:01:38]}
{[%emt 00:00:06]} Kc8 {[%clk 00:00:21]} {[%emt 00:00:09]} 73. Qf8+ {[%clk
00:01:05]} {[%emt 00:00:43]} Kc7 {[%clk 00:00:26]} {[%emt 00:00:05]} 74. Qd6+
{[%clk 00:01:14]} {[%emt 00:00:02]} Kc8 {[%clk 00:00:35]} 75. Qf8+ {[%clk
00:01:23]} {[%emt 00:00:01]} Kc7 {[%clk 00:00:44]} 76. Qd6+ {[%clk 00:01:32]}
{[%emt 00:00:01]} 1/2-1/2

[Event "FIDE U16 Olympiad_boards_1-80"]
[Site "Eindhoven, Netherlands"]
[Date "2023.08.14"]
[Round "2.41"]
[White "Pidluznij, Gleb"]
[Black "Dubnevych, Maksym"]
[Result "1-0"]
[TimeControl "2700+10"]
[WhiteElo "2143"]
[BlackElo "2196"]

1. e4 {[%clk 00:45:16]} {[%emt 00:00:04]} e5 {[%clk 00:45:04]} {[%emt
00:00:15]} 2. Nf3 {[%clk 00:45:23]} {[%emt 00:00:04]} Nc6 {[%clk 00:45:08]}
{[%emt 00:00:06]} 3. Nc3 {[%clk 00:45:27]} {[%emt 00:00:06]} Nf6 {[%clk
00:44:38]} {[%emt 00:00:40]} 4. Bb5 {[%clk 00:45:34]} {[%emt 00:00:04]} Bb4
{[%clk 00:44:03]} {[%emt 00:00:44]} 5. O-O {[%clk 00:45:37]} {[%emt 00:00:06]}
O-O {[%clk 00:43:49]} {[%emt 00:00:23]} 6. Bxc6 {[%clk 00:45:32]} {[%emt
00:00:17]} dxc6 {[%clk 00:36:25]} {[%emt 00:07:34]} 7. d3 {[%clk 00:45:39]}
{[%emt 00:00:03]} Nd7 {[%clk 00:35:03]} {[%emt 00:01:32]} 8. Ne2 {[%clk
00:45:47]} {[%emt 00:00:03]} Re8 {[%clk 00:34:07]} {[%emt 00:01:07]} 9. Ng3
{[%clk 00:45:49]} {[%emt 00:00:07]} Bf8 {[%clk 00:32:33]} {[%emt 00:01:44]} 10.
Bg5 {[%clk 00:43:38]} {[%emt 00:02:20]} f6 {[%clk 00:31:59]} {[%emt 00:00:46]}
11. Be3 {[%clk 00:43:45]} {[%emt 00:00:03]} g6 {[%clk 00:29:25]} {[%emt
00:02:45]} 12. Kh1 {[%clk 00:43:33]} {[%emt 00:00:21]} c5 {[%clk 00:27:38]}
{[%emt 00:01:57]} 13. Ng1 {[%clk 00:41:21]} {[%emt 00:02:21]} b6 {[%clk
00:25:14]} {[%emt 00:02:35]} 14. N1e2 {[%clk 00:40:50]} {[%emt 00:00:40]} Bg7
{[%clk 00:24:17]} {[%emt 00:01:08]} 15. Qd2 {[%clk 00:39:11]} {[%emt 00:01:49]}
h5 {[%clk 00:20:09]} {[%emt 00:04:18]} 16. h4 {[%clk 00:38:48]} {[%emt
00:00:33]} Nf8 {[%clk 00:17:26]} {[%emt 00:02:53]} 17. Bh6 {[%clk 00:34:29]}
{[%emt 00:04:29]} Ne6 {[%clk 00:17:10]} {[%emt 00:00:27]} 18. Bxg7 {[%clk
00:33:33]} {[%emt 00:01:05]} Nxg7 {[%clk 00:17:07]} {[%emt 00:00:12]} 19. f4
{[%clk 00:31:38]} {[%emt 00:02:05]} f5 {[%clk 00:16:49]} {[%emt 00:00:29]} 20.
fxe5 {[%clk 00:30:21]} {[%emt 00:01:27]} Qxh4+ {[%clk 00:16:37]} {[%emt
00:00:23]} 21. Kg1 {[%clk 00:30:30]} Rxe5 {[%clk 00:16:30]} {[%emt 00:00:17]}
22. Qh6 {[%clk 00:30:12]} {[%emt 00:00:27]} Re6 {[%clk 00:09:23]} {[%emt
00:07:17]} 23. exf5 {[%clk 00:19:14]} {[%emt 00:11:08]} gxf5 {[%clk 00:08:43]}
{[%emt 00:00:51]} 24. Qxg7+ {[%clk 00:18:56]} {[%emt 00:00:28]} Kxg7 {[%clk
00:08:51]} {[%emt 00:00:01]} 25. Nxf5+ {[%clk 00:19:05]} {[%emt 00:00:01]} Kg8
{[%clk 00:08:51]} {[%emt 00:00:10]} 26. Nxh4 {[%clk 00:19:13]} {[%emt
00:00:02]} Rxe2 {[%clk 00:08:59]} {[%emt 00:00:01]} 27. Rae1 {[%clk 00:18:38]}
{[%emt 00:00:45]} Rxc2 {[%clk 00:06:05]} {[%emt 00:03:05]} 28. Re8+ {[%clk
00:17:41]} {[%emt 00:01:06]} Kg7 {[%clk 00:02:51]} {[%emt 00:03:25]} 29. Re7+
{[%clk 00:11:15]} {[%emt 00:06:37]} Kh6 {[%clk 00:01:25]} {[%emt 00:01:35]} 30.
Rff7 {[%clk 00:11:23]} {[%emt 00:00:01]} Bb7 {[%clk 00:00:18]} {[%emt
00:01:17]} 31. Rg7 {[%clk 00:11:14]} {[%emt 00:00:19]} Rc1+ {[%clk 00:00:11]}
{[%emt 00:00:17]} 32. Kh2 {[%clk 00:11:19]} {[%emt 00:00:05]} 1-0

[Event "FIDE U16 Olympiad_boards_1-80"]
[Site "Eindhoven, Netherlands"]
[Date "2023.08.14"]
[Round "2.42"]
[White "Hnatyshyn, Anastasiia"]
[Black "Morkunas, Gustas"]
[Result "0-1"]
[TimeControl "2700+10"]
[WhiteElo "2139"]
[BlackElo "2069"]

1. e4 {[%clk 00:45:17]} {[%emt 00:00:03]} c5 {[%clk 00:45:15]} {[%emt
00:00:05]} 2. Nf3 {[%clk 00:45:22]} {[%emt 00:00:06]} e6 {[%clk 00:45:24]} 3.
d4 {[%clk 00:45:29]} {[%emt 00:00:02]} cxd4 {[%clk 00:45:33]} {[%emt 00:00:01]}
4. Nxd4 {[%clk 00:45:37]} {[%emt 00:00:03]} a6 {[%clk 00:45:41]} 5. Bd3 {[%clk
00:45:43]} {[%emt 00:00:04]} Bc5 {[%clk 00:45:49]} {[%emt 00:00:02]} 6. Nb3
{[%clk 00:45:50]} {[%emt 00:00:03]} Ba7 {[%clk 00:45:57]} {[%emt 00:00:02]} 7.
Qe2 {[%clk 00:45:54]} {[%emt 00:00:07]} Nc6 {[%clk 00:45:44]} {[%emt 00:00:22]}
8. Be3 {[%clk 00:45:09]} {[%emt 00:00:56]} Nge7 {[%clk 00:45:33]} {[%emt
00:00:21]} 9. Nc3 {[%clk 00:44:40]} {[%emt 00:00:39]} O-O {[%clk 00:45:18]}
{[%emt 00:00:24]} 10. O-O-O {[%clk 00:42:36]} {[%emt 00:02:14]} Qc7 {[%clk
00:40:29]} {[%emt 00:04:59]} 11. f4 {[%clk 00:39:44]} {[%emt 00:03:02]} Bxe3+
{[%clk 00:37:40]} {[%emt 00:03:00]} 12. Qxe3 {[%clk 00:39:46]} {[%emt
00:00:07]} d6 {[%clk 00:37:39]} {[%emt 00:00:11]} 13. Rhf1 {[%clk 00:36:02]}
{[%emt 00:03:53]} b5 {[%clk 00:26:30]} {[%emt 00:11:20]} 14. f5 {[%clk
00:30:12]} {[%emt 00:06:00]} Ne5 {[%clk 00:24:13]} {[%emt 00:02:28]} 15. Nd4
{[%clk 00:21:55]} {[%emt 00:08:27]} b4 {[%clk 00:20:51]} {[%emt 00:03:32]} 16.
Nce2 {[%clk 00:21:00]} {[%emt 00:01:04]} Nxd3+ {[%clk 00:16:08]} {[%emt
00:04:54]} 17. Rxd3 {[%clk 00:20:03]} {[%emt 00:01:07]} e5 {[%clk 00:14:58]}
{[%emt 00:01:20]} 18. Nf3 {[%clk 00:14:23]} {[%emt 00:05:51]} f6 {[%clk
00:13:17]} {[%emt 00:01:51]} 19. g4 {[%clk 00:12:36]} {[%emt 00:01:57]} Bb7
{[%clk 00:13:10]} {[%emt 00:00:18]} 20. Rfd1 {[%clk 00:10:36]} {[%emt
00:02:09]} Rac8 {[%clk 00:12:39]} {[%emt 00:00:41]} 21. Ne1 {[%clk 00:08:38]}
{[%emt 00:02:08]} Qa5 {[%clk 00:08:00]} {[%emt 00:04:49]} 22. Kb1 {[%clk
00:06:22]} {[%emt 00:02:26]} d5 {[%clk 00:08:01]} {[%emt 00:00:09]} 23. exd5
{[%clk 00:04:18]} {[%emt 00:02:14]} Bxd5 {[%clk 00:04:58]} {[%emt 00:03:14]} 24.
b3 {[%clk 00:02:09]} {[%emt 00:02:18]} Qc5 {[%clk 00:04:53]} {[%emt 00:00:15]}
25. Qd2 {[%clk 00:01:16]} {[%emt 00:01:03]} Bc6 {[%clk 00:03:52]} {[%emt
00:01:11]} 26. Ng3 {[%clk 00:00:48]} {[%emt 00:00:38]} a5 {[%clk 00:03:44]}
{[%emt 00:00:18]} 27. Re3 {[%clk 00:00:17]} {[%emt 00:00:42]} Nd5 {[%clk
00:03:49]} {[%emt 00:00:06]} 28. Rd3 {[%clk 00:00:15]} {[%emt 00:00:11]} Nc3+
{[%clk 00:03:55]} {[%emt 00:00:04]} 29. Kb2 {[%clk 00:00:21]} {[%emt 00:00:04]}
Nxd1+ {[%clk 00:03:54]} {[%emt 00:00:11]} 30. Qxd1 {[%clk 00:00:31]} a4 {[%clk
00:03:48]} {[%emt 00:00:17]} 31. Qe2 {[%clk 00:00:20]} {[%emt 00:00:20]} a3+
{[%clk 00:03:50]} {[%emt 00:00:08]} 32. Kb1 {[%clk 00:00:25]} {[%emt 00:00:06]}
Bb5 {[%clk 00:03:59]} {[%emt 00:00:01]} 0-1